[Event "SixDays Budapest March IM C 2025"]
[Site "Budapest"]
[Date "2025.03.24"]
[Round "1.1"]
[White "Mou, Iris"]
[Black "Nemeth, Zoltan"]
[Result "0-1"]
[Annotator "TA"]
[ECO "C43"]
[WhiteElo "2209"]
[BlackElo "2188"]
[PlyCount "120"]
[EventDate "2025.03.23"]
[EventCountry "HUN"]
[SourceTitle "playchess.com"]
[Source "ChessBase"]
[SourceQuality "1"]
[TimeControl "5400+30"]

{[%evp 17,120,44,43,44,39,46,50,25,26,24,26,0,0,0,0,0,0,0,106,-26,-58,-75,-40,-154,-162,-143,-149,-143,-6,-58,-54,-54,0,0,0,-65,-66,-66,-66,-70,-70,-75,-13,-18,-18,-93,-92,-85,-87,-128,-141,-130,-135,-151,-145,-144,-118,-128,-114,-445,-419,-764,-832,-716,-625,-4333,-3937,-6544,-4434,-5414,-4625,-6452,-11926,-1969,-6327,-29937,-12850,-12373,-12310,-12623,-11872,-7849,-6983,-7825,-1526,-6436,-4219,-29960,-4133,-29976,-29973,-29974,-29974,-29972,-29973,-29974,-29974,-29975,-29976,-29980,-29980,-29975,-29978,-29985,-29986]} 1. e4 {[%emt 0:00:02]} e5 {[%emt 0:00:12]} 2. Nf3 {[%emt 0:00:11]} Nf6 {[%emt 0:00:06]} 3. d4 {[%emt 0:00:06]} Nxe4 {[%emt 0:00:11]} 4. Bd3 {[%emt 0:00:16]} d5 {[%emt 0:00:08]} 5. Nxe5 {[%emt 0:00:07]} Nd7 {[%emt 0:02:27]} 6. Nxd7 {[%emt 0:00:16]} Bxd7 {[%emt 0:00:14]} 7. O-O {[%emt 0:00:08]} Qh4 {[%emt 0:05:30]} 8. c4 {[%emt 0:00:48]} O-O-O {[%emt 0:01:41]} 9. c5 {[%emt 0:01:10]} g5 {[%emt 0:01:32]} 10. Nd2 {[%emt 0:00:19] C43: Petroff Defence: 3 d4.} Nxd2 {[%emt 0:06:08]} 11. Bxd2 {[%emt 0:01:45] A sharp opening} Bg7 {[%emt 0:02:17]} 12. Bc3 $146 {[%emt 0:07:49] White is slightly better.} (12. Be3 Rdf8 13. Qd2 Kb8 14. g3 Qg4 15. Be2 Qe4 16. f3 Qg6 17. Bxg5 Bxd4+ 18. Qxd4 Qxg5 {½-½ Koehl,R-Eggertsdottir,B DESC VM2011 Rd.1 Gr.03 email (1)}) 12... Rhe8 {[%emt 0:07:17]} (12... Bxd4 $2 13. g3 (13. c6 Bg4 $18) 13... Bxc3 14. gxh4 $18) 13. b4 {[%emt 0:06:40]} Re6 {[%emt 0:02:41][%cal Oe6h6]} (13... Bxd4 $2 14. g3 $18) 14. Qf3 {[%emt 0:18:47]} Rh6 {[%emt 0:03:21][%csl Gh6][%cal Rh4h2]} (14... Bxd4 $2 15. g3 Qh3 (15... Rf6 $2 16. Qe2 $18) 16. Bxd4 $18) 15. Qg3 {[%emt 0:03:13]} Bxd4 {[%emt 0:08:56]} 16. Bxd4 {[%emt 0:03:59]} Qxd4 {[%emt 0:00:07]} 17. Qxg5 {[%emt 0:00:43]} Rh4 {[%emt 0:05:19]} (17... Re6 $11 18. Bf5 h6) 18. h3 {[%emt 0:09:08]} (18. c6 $1 $16 {[%cal Rc6d7]} Bxc6 19. Bf5+ (19. g3 Qxd3 20. Qxh4 d4 $11) 19... Bd7 20. g3) 18... h6 $36 {[%emt 0:03:31][%mdl 2048] Black has good play.} 19. Qg3 {[%emt 0:02:21]} Rh5 {[%emt 0:01:56][%cal Oh5g5]} 20. Rfc1 {[%emt 0:06:24]} (20. Qe3 $15 Qxb4 21. Rfc1) 20... Rg5 $1 $17 {[%emt 0:05:54]} (20... Qxb4 21. Rab1 Qa4 22. c6 Bxc6 23. Rxc6 bxc6 24. f4 $18) 21. Qf3 {[%emt 0:03:51]} Rdg8 {[%emt 0:00:09]} ({But not} 21... Qxb4 22. Rab1 Qh4 23. c6 Bxh3 (23... bxc6 24. Ba6#) (23... Bxc6 $2 {perishes.} 24. Rxc6 Qh5 25. Qxh5 $18) 24. cxb7+ Kb8 25. g3 $17) 22. Bf1 {[%emt 0:02:14]} Rg3 {[%emt 0:23:53] Black has more active pieces.} (22... Qh4 $17 23. Rc3 d4 (23... Qxb4 24. Rac1 $17)) 23. Rd1 {[%emt 0:04:47]} (23. Qd1 $11 Qxd1 24. Rxd1 Rxh3 25. Rxd5) 23... Rxf3 $15 {[%emt 0:01:53]} 24. Rxd4 {[%emt 0:00:08]} Rxh3 {[%emt 0:00:20]} ({Black should try} 24... c6 $15) 25. Rxd5 $11 {[%emt 0:03:46]} Rh4 {[%emt 0:00:46]} 26. Rad1 {[%emt 0:01:52]} (26. a3 $11) 26... Be6 $15 {[%emt 0:00:56]} 27. R5d4 {[%emt 0:02:31]} Rxd4 {[%emt 0:00:11]} 28. Rxd4 {[%emt 0:00:15]} Bxa2 {[%emt 0:00:12][%mdl 4096] Endgame KRB-KRB. Black is a pawn up.} 29. Rh4 {[%emt 0:07:14][%cal Of2f3]} Rg6 {[%emt 0:00:37]} (29... Rd8 $17) 30. Bd3 $11 {[%emt 0:00:36]} Rf6 {[%emt 0:00:21]} 31. b5 {[%emt 0:03:09]} (31. f3 $11) 31... Bd5 $17 {[%emt 0:01:44]} 32. Ra4 {[%emt 0:01:44] [#]} Kb8 $1 {[%emt 0:00:21]} 33. Rg4 {[%emt 0:00:35][%cal Rg4g8] [#]} c6 $1 {[%emt 0:02:40]} 34. Rd4 {[%emt 0:02:58]} Kc7 {[%emt 0:01:16]} 35. f4 {[%emt 0:01:06]} b6 {[%emt 0:01:08]} 36. cxb6+ {[%emt 0:01:21]} axb6 {[%emt 0:02:05]} 37. Kf2 {[%emt 0:01:21]} Rd6 {[%emt 0:02:07]} 38. bxc6 {[%emt 0:00:46][%mdl 8192] Loses the game.} (38. Be2 $17) 38... Bxc6 $19 {[%emt 0:00:30]} 39. Rxd6 {[%emt 0:00:54]} (39. Ke3 $142 Bxg2 40. Ra4) 39... Kxd6 $17 {[%emt 0:00:05] KB-KB. Black is a pawn up.} 40. g4 {[%emt 0:00:24]} f6 {[%emt 0:01:50]} 41. Ke3 {[%emt 0:00:59]} Bd7 {[%emt 0:00:08]} 42. Be2 {[%emt 0:00:47]} Kd5 {[%emt 0:00:39]} 43. Bd1 {[%emt 0:01:24]} b5 {[%emt 0:01:10] White must now prevent ...Kc5.} 44. Kd3 {[%emt 0:00:50]} Bc6 {[%emt 0:03:03]} 45. Bb3+ {[%emt 0:00:58]} Kc5 {[%emt 0:00:05]} 46. Bd1 {[%emt 0:01:01]} b4 {[%emt 0:00:05]} 47. Bb3 {[%emt 0:00:24]} Bd7 {[%emt 0:04:17]} 48. Bd1 {[%emt 0:00:06]} Be6 {[%emt 0:00:07]} 49. Bf3 {[%emt 0:00:18]} Bc4+ {[%emt 0:00:34]} 50. Ke3 {[%emt 0:00:04]} Bf7 {[%emt 0:01:09]} (50... Bd5 $142 51. Be2 b3) 51. Be2 {[%emt 0:00:58]} Bg6 {[%emt 0:00:26]} 52. f5 {[%emt 0:01:05]} Bf7 {[%emt 0:00:12] ( -> ...b3)} 53. Bd3 {[%emt 0:00:59]} Bb3 {[%emt 0:00:21] Black mates.} 54. Be2 {[%emt 0:00:11]} Bc4 {[%emt 0:00:20]} 55. Bf3 {[%emt 0:00:08]} b3 {[%emt 0:00:32]} 56. Be4 {[%emt 0:00:22]} b2 {[%emt 0:00:52]} 57. Bb1 {[%emt 0:00:06]} Bb3 {[%emt 0:00:12]} 58. Kd2 {[%emt 0:00:47]} Kd4 {[%emt 0:00:19]} 59. Ke2 {[%emt 0:00:26]} Kc3 {[%emt 0:01:07]} 60. Kf3 {[%emt 0:00:12]} Kd2 {[%emt 0:00:41] Weighted Error Value: White=1.11/Black=0.36  Loses game:     	White=1     	---        Mistake:       	White=6     	Black=4      Inaccurate:     	White=2     	Black=1      OK:         	White=13    	Black=11     Best:        	White=2     	Black=4      Strong:       	---       	Black=3} 0-1

[Event "SixDays Budapest March IM C 2025"]
[Site "Budapest"]
[Date "2025.03.24"]
[Round "1.2"]
[White "Bashirov, Kemal"]
[Black "Georgiadis, Anastasios"]
[Result "1/2-1/2"]
[Annotator "TA"]
[ECO "E24"]
[WhiteElo "2336"]
[BlackElo "2229"]
[PlyCount "89"]
[EventDate "2025.03.23"]
[EventCountry "HUN"]
[SourceTitle "playchess.com"]
[Source "ChessBase"]
[SourceQuality "1"]
[TimeControl "5400+30"]

{[%evp 19,89,31,31,4,-3,24,19,20,18,18,27,27,27,31,33,13,20,23,28,27,64,14,158,117,103,70,52,-77,-61,-70,-67,-74,-58,-191,-68,-59,-47,-32,0,-54,0,-68,-8,0,0,-8,-7,-40,-38,-35,-8,-8,-8,-24,-9,-49,-18,-49,-8,-20,0,-9,-2,-9,0,-8,0,-1,-1,-14,-31,-72]} 1. d4 {[%emt 0:00:01]} Nf6 {[%emt 0:00:06]} 2. c4 {[%emt 0:00:03]} e6 {[%emt 0:00:06]} 3. Nc3 {[%emt 0:00:03]} Bb4 4. a3 {[%emt 0:00:03]} Bxc3+ {[%emt 0:01:28]} 5. bxc3 {[%emt 0:00:04]} d6 {[%emt 0:01:27]} 6. f3 {[%emt 0:00:29]} O-O {[%emt 0:03:25]} 7. e4 {[%emt 0:00:05]} c5 {[%emt 0:04:21]} 8. Bd3 {[%emt 0:00:56]} Nc6 {[%emt 0:04:48]} 9. Ne2 {[%emt 0:00:39]} e5 {[%emt 0:04:09]} 10. d5 {[%emt 0:01:58]} Na5 {[%emt 0:02:53]} 11. Bg5 {[%emt 0:00:15] E24: Nimzo-Indian: Sämisch: Unusual Black 5th moves and 5...c5 sidelines.} h6 {[%emt 0:07:53]} 12. Be3 {[%emt 0:00:17]} Nd7 $146 {[%emt 0:10:35][%cal Bf6d7,Bd7f8,Bf8g6,Bg6f4][%mdl 32]} ({Predecessor:} 12... b6 13. Ng3 Re8 14. Kf2 Kh7 15. h4 g6 16. Qe2 Qd7 17. a4 Qe7 18. Qa2 Bd7 {1-0 Ding,L (2664)-Wang,Y (2714) Shenzhen Celebrity 1st rapid 2011 (2)}) 13. Ng3 {[%emt 0:05:12] The position is equal.} Re8 {[%emt 0:09:32]} 14. O-O {[%emt 0:11:36]} Nf8 {[%emt 0:00:21]} 15. f4 {[%emt 0:09:10]} exf4 {[%emt 0:00:37]} 16. Bxf4 {[%emt 0:00:02] [#]} Ng6 {[%emt 0:03:51]} 17. Qf3 {[%emt 0:01:48][%cal Oe4e5]} Nxf4 {[%emt 0:04:49]} 18. Qxf4 {[%emt 0:00:05]} f6 {[%emt 0:02:46]} 19. Nh5 {[%emt 0:18:52]} Re5 {[%emt 0:02:33]} 20. Qh4 {[%emt 0:07:41] White is more active.} Qe7 {[%emt 0:15:18]} (20... Rg5 $1 $11) 21. Rf2 {[%emt 0:16:36]} Bd7 {[%emt 0:01:29]} 22. Raf1 {[%emt 0:06:58][%cal Rh5f6] Strongly threatening Nxf6+!.} Rf8 {[%emt 0:00:40]} 23. h3 {[%emt 0:01:22] [#]} (23. Nxf6+ $1 $14 Rxf6 24. Rxf6 gxf6 25. Rxf6) 23... Rg5 $1 $17 {[%emt 0:02:50]} 24. Nf4 {[%emt 0:04:12]} Qe5 {[%emt 0:01:12]} 25. Ne2 {[%emt 0:00:14]} Re8 {[%emt 0:01:58]} 26. Qf4 {[%emt 0:00:49]} ({White should play} 26. Rf3 $15) 26... Qxf4 {[%emt 0:00:48]} (26... Bxh3 $19 {White must now prevent ...b6.} 27. Qd2 b6) 27. Nxf4 $15 {[%emt 0:00:04]} Rge5 {[%emt 0:02:04]} 28. Ng6 {[%emt 0:03:27]} Rg5 {[%emt 0:00:08][%csl LRg6,LRh3]} 29. Nf4 {[%emt 0:00:08]} Rge5 {[%emt 0:00:04]} ({Better is} 29... Rg3 $15) 30. Re2 {[%emt 0:03:21]} (30. Ng6 $11) 30... Rc8 {[%emt 0:03:39]} (30... Kf7 $15) 31. Ng6 $11 {[%emt 0:00:51]} Ree8 {[%emt 0:00:18]} 32. Nh4 {[%emt 0:00:34]} b6 {[%emt 0:02:30]} 33. Rfe1 {[%emt 0:00:19]} Nb7 {[%emt 0:00:42]} 34. Nf5 {[%emt 0:01:24]} Bxf5 {[%emt 0:00:21]} 35. exf5 {[%emt 0:00:03]} Re5 {[%emt 0:00:51]} 36. Rxe5 {[%emt 0:00:53]} dxe5 {[%emt 0:00:02][%mdl 4096] Endgame KRB-KRN} 37. a4 {[%emt 0:02:38]} Kf8 {[%emt 0:00:39]} 38. Kf2 Re8 {[%emt 0:01:18]} 39. g4 {[%emt 0:00:44]} Nd6 {[%emt 0:02:40]} 40. Ke3 {[%emt 0:01:35]} Ke7 {[%emt 0:00:54]} 41. Ra1 {[%emt 0:00:36]} Rb8 {[%emt 0:00:42]} 42. h4 {[%emt 0:01:23]} Kd7 {[%emt 0:00:36]} 43. Rh1 Rh8 {[%emt 0:00:26]} 44. Rg1 {[%emt 0:00:57]} Kc7 {[%emt 0:00:45]} 45. h5 {[%emt 0:03:08] Weighted Error Value: White=0.24 (precise) /Black=0.19 (very precise)   Mistake:       	White=3     	Black=4      Inaccurate:     	White=5     	Black=3      OK:         	White=15    	Black=13     Best:        	---       	Black=4      Strong:       	---       	Black=1} 1/2-1/2

[Event "SixDays Budapest March IM C 2025"]
[Site "Budapest"]
[Date "2025.03.24"]
[Round "1.3"]
[White "Arias Gaviria, Mario Alexis"]
[Black "Lau, Lut Yin Luke"]
[Result "1/2-1/2"]
[Annotator "TA"]
[ECO "D40"]
[WhiteElo "2284"]
[BlackElo "2240"]
[PlyCount "48"]
[EventDate "2025.03.23"]
[EventCountry "HUN"]
[SourceTitle "playchess.com"]
[Source "ChessBase"]
[SourceQuality "1"]
[TimeControl "5400+30"]

{[%evp 11,48,8,14,11,31,30,22,7,8,5,14,11,14,-20,0,-8,0,0,0,0,-8,0,22,17,21,24,32,4,5,0,0,0,0,0,0,-15,-24,-22,0]} 1. d4 {[%emt 0:01:41]} Nf6 {[%emt 0:00:39]} 2. c4 {[%emt 0:00:06]} e6 {[%emt 0:00:35]} 3. Nf3 {[%emt 0:00:03]} d5 {[%emt 0:00:29]} 4. Nc3 {[%emt 0:00:05]} c5 {[%emt 0:00:46]} 5. e3 {[%emt 0:00:04]} a6 {[%emt 0:00:35]} 6. cxd5 {[%emt 0:00:05]} exd5 {[%emt 0:00:21]} 7. g3 {[%emt 0:00:13] D40: Queen's Gambit Declined: Semi-Tarrasch with 5 e3.} Nc6 {[%emt 0:06:04] 7...c4 is the hot move.} 8. Bg2 {[%emt 0:00:16]} c4 {[%emt 0:01:43]} 9. Ne5 {[%emt 0:01:06]} Bb4 {[%emt 0:04:22]} 10. O-O {[%emt 0:08:56]} O-O {[%emt 0:02:05]} 11. Bd2 {[%emt 0:03:55]} Re8 {[%emt 0:10:54]} 12. a3 {[%emt 0:19:18] [#] Strongly threatening Nxc6.} Bxc3 $146 {[%emt 0:09:26]} (12... Ba5 13. b4 cxb3 14. Nxc6 bxc6 15. Qxb3 h5 16. Qc2 h4 17. Ne2 Bxd2 18. Qxd2 h3 {½-½ Andreikin,D (2729)-Pechac,J (2582) EU-Cup 39th Vrnjacka Banja 2024 (3.1)}) 13. Bxc3 {[%emt 0:00:32]} Bf5 {[%emt 0:07:02]} 14. f3 {[%emt 0:22:38]} Nd7 {[%emt 0:17:11]} 15. Nxc6 {[%emt 0:11:13]} bxc6 {[%emt 0:00:06]} 16. Re1 {[%emt 0:00:14]} Nf6 {[%emt 0:01:31]} 17. b3 {[%emt 0:00:21]} cxb3 {[%emt 0:03:25]} 18. Qxb3 {[%emt 0:00:01]} Qd7 {[%emt 0:02:41]} 19. g4 {[%emt 0:07:45]} Bg6 {[%emt 0:01:45]} 20. Rac1 {[%emt 0:00:19]} h5 {[%emt 0:05:56]} 21. h3 {[%emt 0:04:15]} Re6 {[%emt 0:01:41]} 22. Bd2 {[%emt 0:01:58]} Qd6 {[%emt 0:02:50]} 23. Re2 {[%emt 0:06:17]} Rb8 {[%emt 0:02:48]} 24. Qc3 {[%emt 0:02:45]} Rbe8 {[%emt 0:05:42] Not much happened in this game.   Weighted Error Value: White=0.06 (flawless) /Black=0.04 (flawless)   Inaccurate:     	White=2     	---        OK:         	White=6     	Black=11     Best:        	---       	Black=1} 1/2-1/2

[Event "SixDays Budapest March IM C 2025"]
[Site "Budapest"]
[Date "2025.03.24"]
[Round "1.4"]
[White "Balla, Tamas-Kristof"]
[Black "Sanjay Narayanan P S"]
[Result "1/2-1/2"]
[Annotator "TA"]
[ECO "A06"]
[WhiteElo "2320"]
[BlackElo "2169"]
[PlyCount "52"]
[EventDate "2025.03.23"]
[EventCountry "HUN"]
[SourceTitle "playchess.com"]
[Source "ChessBase"]
[SourceQuality "1"]
[TimeControl "5400+30"]

{[%evp 18,52,10,11,15,10,18,9,12,0,0,22,14,-29,-24,-25,-32,-25,-32,-38,-53,-33,-14,-25,-12,-18,-17,-15,-9,-9,-8,-5,0,0,0,0,8]} 1. Nf3 {[%emt 0:00:03]} d5 {[%emt 0:00:11]} 2. b3 {[%emt 0:00:05]} c5 {[%emt 0:00:16]} 3. e3 {[%emt 0:00:12]} Nc6 {[%emt 0:00:23]} 4. Bb2 {[%emt 0:00:07]} Nf6 {[%emt 0:00:22]} 5. Bb5 {[%emt 0:00:09]} Bd7 {[%emt 0:00:42]} 6. O-O {[%emt 0:00:25]} e6 {[%emt 0:01:12]} 7. Bxc6 {[%emt 0:03:36]} Bxc6 {[%emt 0:00:39]} 8. Ne5 {[%emt 0:00:06]} Rc8 {[%emt 0:03:43]} 9. d3 {[%emt 0:00:50]} Bd6 {[%emt 0:02:24]} 10. f4 {[%emt 0:00:49]} O-O {[%emt 0:03:21] A03: Bird's Opening with 1...d5.} 11. Nxc6 {[%emt 0:03:59]} Rxc6 {[%emt 0:01:02]} 12. Nd2 {[%emt 0:00:07]} Qe7 {[%emt 0:05:35]} 13. e4 $146 {[%emt 0:02:56] [#] and e5 would now be decisive} (13. c4 e5 14. Qf3 d4 15. Rae1 Qc7 16. fxe5 Bxe5 17. exd4 Bxh2+ 18. Kh1 Bg3 19. Re3 {0-1 Durao,J (2116)-Kraidman,Y (2350) Wch Seniors 09th 1999 (7)}) 13... c4 {[%emt 0:11:02]} 14. Bxf6 {[%emt 0:02:43]} ({But not} 14. dxc4 Nxe4 (14... dxe4 15. Bxf6 Qxf6 16. Nxe4 $16) 15. Nxe4 dxe4 $15) 14... Qxf6 {[%emt 0:03:43]} 15. bxc4 {[%emt 0:05:03]} (15. e5 $5 Bc5+ $8 16. Kh1 $14) 15... Bxf4 {[%emt 0:04:42] Threatens to win with ...Qh6.} 16. cxd5 {[%emt 0:10:44] White is weak on the dark squares} exd5 {[%emt 0:04:50]} 17. exd5 {[%emt 0:07:09]} Qd4+ {[%emt 0:07:17]} 18. Kh1 {[%emt 0:00:31]} Rh6 {[%emt 0:03:09][%csl Gf4][%cal Rh6h2] [#]} (18... Qxd5 $2 {loses.} 19. Rxf4 Rfc8 20. Re4 $18) 19. h3 {[%emt 0:03:58]} Bxd2 {[%emt 0:06:32]} 20. Qxd2 {[%emt 0:00:33]} Qxd5 {[%emt 0:00:03]} 21. Qe3 {[%emt 0:03:29] The position is equal.} b5 {[%emt 0:07:11]} 22. Rf4 {[%emt 0:06:45]} Ra6 {[%emt 0:05:38]} 23. c4 {[%emt 0:02:34]} bxc4 {[%emt 0:03:51]} 24. dxc4 {[%emt 0:01:12]} Qe6 {[%emt 0:02:15]} 25. Qf2 {[%emt 0:03:16]} Ra4 {[%emt 0:03:03]} 26. Rc1 {[%emt 0:03:19]} f6 {[%emt 0:03:37] Weighted Error Value: White=0.05 (flawless) /Black=0.03 (flawless)   Inaccurate:     	White=1     	---        OK:         	White=5     	Black=6      Best:        	White=1     	Black=1} 1/2-1/2

[Event "SixDays Budapest March IM C 2025"]
[Site "Budapest"]
[Date "2025.03.24"]
[Round "1.5"]
[White "Szeberenyi, Adam"]
[Black "Steiners, Emils"]
[Result "1/2-1/2"]
[Annotator "TA"]
[ECO "D52"]
[WhiteElo "2294"]
[BlackElo "2165"]
[PlyCount "105"]
[EventDate "2025.03.23"]
[EventCountry "HUN"]
[SourceTitle "playchess.com"]
[Source "ChessBase"]
[SourceQuality "1"]
[TimeControl "5400+30"]

{[%evp 20,105,27,22,27,25,29,25,31,36,24,41,38,39,33,19,33,25,40,27,80,70,78,76,99,97,102,92,100,101,102,102,107,69,83,67,87,87,89,75,75,75,95,75,106,106,114,111,128,128,121,121,121,128,128,45,128,0,128,129,126,74,112,27,125,87,125,110,162,151,143,22,23,23,36,9,9,0,0,0,0,0,0,0,0,0,0,0]} 1. d4 {[%emt 0:00:04]} d5 {[%emt 0:00:05]} 2. c4 {[%emt 0:00:07]} e6 {[%emt 0:00:04]} 3. Nc3 {[%emt 0:00:11]} Nf6 {[%emt 0:00:11]} 4. Nf3 {[%emt 0:00:13][%cal Bg1f3,Bf3d2,Bd2c4][%mdl 32]} c6 {[%emt 0:00:21]} 5. Bg5 {[%emt 0:00:56]} Nbd7 {[%emt 0:00:13]} 6. e3 {[%emt 0:00:06]} Qa5 {[%emt 0:00:34]} 7. Nd2 {[%emt 0:00:20]} dxc4 {[%emt 0:00:22]} 8. Bxf6 {[%emt 0:00:05]} Nxf6 {[%emt 0:00:08]} 9. Nxc4 {[%emt 0:00:08]} Qc7 {[%emt 0:00:11]} 10. Rc1 {[%emt 0:00:07]} Be7 {[%emt 0:05:51] 10...Bd6 is more advanced technology.} 11. g3 {[%emt 0:01:42]} O-O {[%emt 0:06:17] D52: Queen's Gambit Declined: Cambridge Springs Variation.} 12. Bg2 {[%emt 0:00:03]} Rd8 {[%emt 0:09:03]} 13. O-O {[%emt 0:00:39]} Bd7 {[%emt 0:03:00] White has an edge.} 14. e4 {[%emt 0:03:37][%cal Be3e4,Be4e5][%mdl 32]} b5 {[%emt 0:17:44]} 15. Ne3 {[%emt 0:04:51]} Qb6 {[%emt 0:07:00]} 16. e5 {[%emt 0:05:44]} Nd5 {[%emt 0:02:22]} 17. Ne4 {[%emt 0:11:53]} Rac8 {[%emt 0:08:22]} 18. Qd2 {[%emt 0:01:35]} Be8 {[%emt 0:20:33]} 19. Rfd1 {[%emt 0:12:21]} f5 $146 {[%emt 0:05:42]} (19... Nxe3 $11 20. Qxe3 c5) (19... Nxe3 20. Qxe3 c5 21. dxc5 Rxd1+ 22. Rxd1 Bxc5 23. Nxc5 Qxc5 24. Qxc5 Rxc5 25. Rd8 Kf8 {½-½ Loinjak,S (2511)-Oikamo,T (2502) W-ch32 q01 email 2012}) 20. Nc5 $16 {[%emt 0:11:36]} Bxc5 {[%emt 0:01:02]} 21. Rxc5 {[%emt 0:03:24]} Nxe3 {[%emt 0:02:31]} 22. fxe3 {[%emt 0:00:04]} (22. Qxe3 Qxc5 23. dxc5 Rxd1+ 24. Bf1 Rcd8 $17) 22... Qxc5 {[%emt 0:02:26]} 23. dxc5 {[%emt 0:00:30]} Rxd2 {[%emt 0:00:07]} 24. Rxd2 $14 {[%emt 0:00:03][%mdl 4096] Endgame KRB-KRB} Kf8 {[%emt 0:01:11]} 25. Rd6 {[%emt 0:04:19]} Ke7 {[%emt 0:00:13]} 26. Kf1 {[%emt 0:01:07]} Bd7 {[%emt 0:00:30]} 27. h4 {[%emt 0:03:39]} Kd8 {[%emt 0:01:52]} 28. e4 {[%emt 0:07:41] [#]} g6 {[%emt 0:02:43]} 29. exf5 {[%emt 0:00:21]} gxf5 {[%emt 0:00:11]} 30. Bf3 {[%emt 0:00:01]} Ke7 {[%emt 0:03:30]} 31. Kf2 {[%emt 0:00:41]} Rc7 {[%emt 0:00:46]} 32. Ke3 {[%emt 0:00:46]} Rc8 {[%emt 0:00:04]} 33. b4 {[%emt 0:05:19]} Rc7 {[%emt 0:01:15]} 34. Kf4 {[%emt 0:00:22]} h6 {[%emt 0:00:06][%cal Oa7a5]} 35. g4 {[%emt 0:05:13] White is much more active.} fxg4 {[%emt 0:00:05]} 36. Kxg4 {[%emt 0:00:01]} (36. Bxg4 $6 a5 $11) 36... Be8 {[%emt 0:00:12]} 37. Kf4 {[%emt 0:01:12]} ({White should play} 37. Bh1 $16) 37... Bd7 {[%emt 0:00:36]} (37... a5 $1 $14) 38. Kg4 {[%emt 0:02:34]} Be8 {[%emt 0:00:10]} 39. Be4 {[%emt 0:00:09]} Rc8 {[%emt 0:00:21]} 40. Kf4 {[%emt 0:02:21]} (40. Bg2 $142) 40... Bd7 {[%emt 0:01:06] [#]} 41. Ke3 {[%emt 0:00:40]} (41. Rd3 $1 $16) 41... Be8 {[%emt 0:01:20]} (41... a5 $1 $11 {keeps the balance.}) 42. Kd4 {[%emt 0:03:13]} Bd7 {[%emt 0:00:27]} 43. Kc3 {[%emt 0:00:09]} Kd8 {[%emt 0:00:39]} (43... h5 $16 {is a better defense.}) 44. Rd3 {[%emt 0:07:18]} Kc7 {[%emt 0:00:27]} 45. Kd4 {[%emt 0:02:03]} (45. Rg3 $16) 45... Rg8 $11 {[%emt 0:00:26]} 46. Ra3 {[%emt 0:00:08]} Kb8 {[%emt 0:00:37]} 47. Rf3 {[%emt 0:03:38] Strongly threatening Rf7.} Rg4 $1 {[%emt 0:00:23] The position is equal.} 48. Rf8+ {[%emt 0:00:36]} Kc7 {[%emt 0:00:08]} 49. Ra8 {[%emt 0:00:31]} (49. h5 $5 Rh4 $8 50. Rh8 Rxh5 51. Ra8 $11) 49... Kb7 {[%emt 0:00:49]} 50. Rd8 {[%emt 0:00:18]} Kc7 {[%emt 0:00:04]} 51. Ra8 {[%emt 0:00:05]} Kb7 {[%emt 0:00:48]} 52. Rd8 {[%emt 0:00:31]} Kc7 {[%emt 0:00:18]} 53. Ra8 {[%emt 0:00:09] Weighted Error Value: White=0.20 (precise) /Black=0.13 (very precise)   Mistake:       	White=4     	Black=4      Inaccurate:     	White=3     	Black=3      OK:         	White=17    	Black=21     Best:        	---       	Black=2      Strong:       	---       	Black=1} 1/2-1/2